bitfinex/quotes_ETHUSD_20251006
["timestamp","ask_amount","ask_price","bid_price","bid_amount"]
[1759760054531,8.11576545,4642.6,4642.1,0.001]
[1759760054532,0.6336,4642.3,4638.6,2.26587593]
[1759760054746,0.6336,4641.7,4639.6,0.4276]
[1759760055060,4.814247,4641.6,4635.7,0.74903445]
[1759760055228,4.814247,4641.6,4637.4,0.4276]
[1759760055229,2.15559052,4639.1,4637.4,0.4276]
[1759760055567,2.15559052,4639.1,4635.8,2.16609764]
[1759760055568,2.4,4639.1,4636.4,2.15680697]
[1759760055727,2.4,4639.1,4638.5,0.4276]
[1759760055942,5.01079052,4639.1,4637.4,0.4276]
[1759760056756,4.55559052,4639.1,4638.1,0.4276]
[1759760057277,7.48579052,4639.1,4637.5,0.4276]
[1759760057702,7.03059052,4639.1,4637.5,0.4276]
[1759760058001,7.03059052,4639.1,4634.9,2.15753844]
[1759760058002,7.03459052,4639.1,4637.9,0.4276]
[1759760058286,2.479,4639.1,4636.9,2.056]
[1759760058489,2.15470803,4641.0,4639.0,0.4376]
[1759760058642,2.15509308,4640.2,4639.0,0.4376]
[1759760058845,2.48,4640.1,4639.0,0.4376]
[1759760059152,2.48,4640.4,4639.0,0.4376]
[1759760059485,0.108,4639.1,4639.0,0.01]
[1759760059720,1.08429205,4640.7,4639.0,0.4376]
[1759760059721,2.4,4640.5,4639.0,0.4376]
[1759760059843,2.48,4640.4,4639.0,0.4376]
[1759760060046,2.15431026,4641.9,4639.0,0.4376]
[1759760060047,13.6324642,4641.8,4639.0,0.4376]
[1759760060251,2.1549609,4640.5,4639.0,0.4376]
[1759760060475,2.15484732,4640.7,4639.0,0.4376]
[1759760060888,2.48,4640.8,4639.0,0.4376]
[1759760061087,2.15536024,4639.6,4639.0,0.4376]
[1759760061300,2.15545684,4639.4,4639.0,0.4376]
[1759760061498,2.15535317,4639.7,4639.0,0.01]
[1759760061788,2.4,4640.7,4639.1,0.4276]
[1759760061949,2.4,4640.7,4639.1,2.58318833]
[1759760062149,2.15459543,4641.3,4639.0,0.01]
[1759760062150,0.4552,4641.6,4639.2,0.4276]
[1759760062389,2.479,4640.9,4639.2,0.4276]
[1759760063488,14.05729998,4641.8,4639.2,0.4276]
[1759760063687,2.15494187,4640.5,4639.3,4.879]
[1759760063897,2.9342,4641.7,4639.3,4.879]
[1759760063898,2.15503715,4640.3,4639.4,0.53066]
[1759760064062,2.4,4641.7,4639.2,2.58313459]
[1759760064063,2.479,4640.6,4639.2,0.4276]
[1759760064264,2.479,4640.6,4639.0,0.01]
[1759760064694,0.6336,4640.4,4639.0,0.01]
[1759760064987,2.15559052,4639.1,4639.0,0.01]
[1759760065283,4.55559052,4639.1,4639.0,0.011]
[1759760066696,2.15559052,4639.1,4639.0,0.011]
[1759760068391,4.55559052,4639.1,4639.0,0.011]
[1759760069084,7.03459052,4639.1,4639.0,0.011]
[1759760069471,13.6324642,4641.1,4639.0,0.4386]
[1759760069792,2.1553684,4639.6,4639.0,0.4386]
[1759760070088,0.108,4639.7,4639.1,0.108]
[1759760070288,0.4552,4640.8,4639.1,0.108]
[1759760070490,0.108,4640.1,4639.5,0.108]
[1759760070668,2.481,4640.1,4639.0,0.011]
[1759760071088,2.481,4640.1,4639.1,0.4276]
[1759760071285,2.4,4640.9,4639.1,0.4276]
[1759760071498,13.6324642,4641.5,4639.1,0.4276]
[1759760071499,0.4552,4641.7,4639.4,2.15544846]
[1759760071804,0.4552,4641.7,4639.0,0.011]
[1759760071805,2.15485355,4640.7,4639.7,2.15526646]
[1759760072028,2.48,4641.6,4639.8,0.4276]
[1759760072180,2.48,4641.6,4638.9,2.4]
[1759760072380,2.15559052,4639.1,4638.0,0.001]
[1759760072616,2.48,4639.6,4638.4,0.4276]
[1759760072824,2.15559052,4639.1,4638.4,0.4276]
[1759760073230,0.4552,4640.3,4639.0,0.4664]
[1759760073524,2.327,4641.4,4639.0,0.4664]
[1759760073819,0.2327,4641.3,4639.1,0.6336]
[1759760074036,2.327,4641.4,4639.3,0.6336]
[1759760074195,0.4365,4641.3,4639.0,0.011]
[1759760074518,2.15559052,4639.1,4639.0,0.011]
[1759760074893,2.48,4639.5,4639.0,0.011]
[1759760075097,2.15559052,4639.1,4639.0,0.011]
[1759760075415,2.48,4640.0,4639.0,0.011]
[1759760075917,2.15536495,4639.6,4639.0,0.4781]
[1759760076121,2.15549104,4639.4,4639.0,0.011]
[1759760076324,2.479,4640.4,4639.0,0.011]
[1759760076485,0.4635,4641.4,4639.2,2.15549852]
[1759760076681,2.15515585,4640.1,4639.1,0.4671]
[1759760077011,2.15503739,4640.3,4639.1,0.4671]
[1759760077181,2.479,4641.3,4639.3,2.15549759]
[1759760077382,2.15470803,4641.0,4639.2,0.29571]
[1759760077611,2.15470803,4641.0,4639.1,0.4671]
[1759760077612,2.4,4641.0,4639.1,0.4671]
[1759760077812,2.15521613,4640.0,4639.1,2.62264981]
[1759760078408,2.58038487,4641.8,4639.1,0.4671]
[1759760078623,2.15466161,4641.1,4639.1,0.4671]
[1759760078793,2.15466161,4641.1,4639.1,2.62268492]
[1759760078987,2.15470803,4641.0,4639.2,0.73046849]
[1759760079303,0.74971616,4641.1,4639.2,0.73046849]
[1759760079304,2.1550283,4640.4,4639.3,1.1007]
[1759760079502,2.15487885,4640.7,4639.8,2.15525914]
[1759760079703,0.74971616,4641.1,4639.9,0.4671]
[1759760079919,2.477,4641.5,4639.9,0.4671]
[1759760080219,2.1544347,4641.6,4640.4,2.15496961]
[1759760080391,0.002,4641.8,4640.5,0.4671]
[1759760080585,0.002,4641.8,4641.2,0.108]
[1759760080831,0.002,4641.8,4640.6,0.6336]
[1759760081005,0.002,4641.8,4640.9,0.4671]
[1759760081186,2.15448254,4641.5,4640.9,0.4671]
[1759760081382,2.15438309,4641.7,4640.9,0.4671]
[1759760081582,0.002,4641.8,4640.9,0.4671]
[1759760081804,2.1563446,4641.8,4641.0,2.15470803]
[1759760082006,0.002,4641.8,4640.9,0.4671]
[1759760082208,0.002,4641.8,4640.9,2.62185151]
[1759760082485,0.002,4641.8,4640.9,0.4671]
[1759760082916,2.15438309,4641.7,4640.9,2.62184525]
[1759760083213,2.15438309,4641.7,4640.9,0.4671]
[1759760083412,0.21563831,4641.7,4640.9,0.4671]
[1759760083595,0.002,4641.8,4640.9,0.4671]
[1759760083793,0.002,4641.0,4640.2,0.4671]
[1759760084319,0.002,4641.0,4640.5,2.4]
[1759760084485,0.0012,4641.0,4640.4,2.4]
[1759760084684,0.0012,4641.0,4640.3,4.877]
[1759760084891,0.0012,4641.0,4640.5,0.6336]
[1759760085089,0.0012,4641.0,4640.9,2.78835446]
[1759760085495,0.0012,4641.0,4640.6,2.8671]
[1759760085703,0.0012,4641.0,4640.7,4.878]
[1759760085992,0.0012,4641.0,4640.4,2.478]
[1759760086297,0.0012,4641.0,4640.5,2.4]
[1759760086506,0.0012,4641.0,4640.6,2.15487915]
[1759760086693,0.0012,4641.0,4640.5,0.4671]
[1759760086694,0.0012,4641.0,4640.8,2.15477451]
[1759760086893,0.0012,4641.0,4640.6,0.4671]
[1759760087212,0.0012,4641.0,4640.0,0.4671]
[1759760087414,0.0012,4641.0,4640.5,2.15493758]
[1759760087587,0.0012,4641.0,4640.6,0.21549376]
[1759760087785,0.0012,4641.0,4640.7,2.477]
[1759760087985,0.0012,4641.0,4640.9,2.15475446]
[1759760088190,0.0012,4641.0,4640.1,0.4671]
[1759760088409,0.0012,4641.0,4640.6,2.15488388]
[1759760088716,0.0012,4641.0,4640.6,2.477]
[1759760088917,0.0012,4641.0,4640.6,0.70319453]
[1759760089092,0.0012,4641.0,4640.5,4.63189718]
[1759760090209,0.0012,4641.0,4640.6,0.4671]
[1759760090396,0.0012,4641.0,4640.0,0.4671]
[1759760090600,0.0012,4641.0,4640.1,4.547]
[1759760090807,0.0012,4641.0,4640.9,0.108]
[1759760091400,0.0012,4641.0,4640.9,0.5751]
[1759760091708,0.0012,4641.0,4640.9,0.108]
[1759760092223,0.0012,4641.0,4639.8,0.4671]
[1759760092536,2.15591325,4641.0,4639.9,4.877]
[1759760092697,2.15591325,4641.0,4640.0,5.55668241]
[1759760092896,0.0012,4641.0,4640.0,3.40151]
[1759760093231,0.0012,4641.0,4640.1,1.1007]
[1759760093388,0.0012,4641.0,4640.7,2.1548376]
[1759760093594,0.0012,4641.0,4640.1,1.1007]
[1759760093595,0.0012,4641.0,4640.9,2.15475446]
[1759760094030,0.0012,4641.0,4640.9,3.08502991]
[1759760094230,0.0012,4641.0,4640.7,2.477]
[1759760094733,0.0012,4641.0,4640.8,0.4671]
[1759760095035,0.0012,4641.0,4640.9,2.15475446]
[1759760095198,0.0012,4641.0,4640.9,5.65545446]
[1759760098606,0.0012,4641.0,4640.9,8.13145446]
[1759760098807,0.0012,4641.0,4640.9,9.16008353]
[1759760100617,0.0012,4641.0,4640.9,1.02862907]
[1759760100943,0.0012,4641.0,4640.9,7.03075446]
[1759760101126,0.0012,4641.0,4640.9,8.13145446]
[1759760102309,0.0012,4641.0,4640.9,13.16041046]
[1759760102504,0.0012,4641.0,4640.9,11.49104446]
[1759760102809,0.0012,4641.0,4640.9,15.23758046]
[1759760103027,0.0012,4641.0,4640.9,13.44389472]
[1759760103229,0.0012,4641.0,4640.9,15.77689372]
[1759760103606,0.0012,4641.0,4640.9,13.30089372]
[1759760103808,0.0012,4641.0,4640.9,14.92690172]
[1759760104325,0.0012,4641.0,4640.9,15.57206472]
[1759760104532,1e-08,4641.5,4641.4,2.78812234]
[1759760104728,1e-08,4641.5,4641.4,10.58122757]
[1759760104940,1e-08,4642.0,4641.9,2.78789026]
[1759760105119,1e-08,4642.0,4641.9,10.05023526]
[1759760105332,1e-08,4642.0,4641.9,10.39401226]
[1759760106222,1e-08,4642.0,4641.9,17.57296126]
[1759760106420,1e-08,4642.0,4641.9,19.65882589]
[1759760106824,1e-08,4642.0,4641.9,14.75462889]
[1759760107043,1e-08,4642.0,4641.9,13.88007989]
[1759760107354,1e-08,4642.0,4641.9,11.581483]
[1759760107647,1e-08,4642.0,4641.9,13.30427989]
[1759760107854,1e-08,4642.0,4641.9,22.21577689]
[1759760108032,1e-08,4642.0,4641.9,20.566512]
[1759760108235,1e-08,4642.0,4641.9,17.06329]
[1759760108759,0.00120001,4642.3,4642.2,2.15415104]
[1759760109051,0.00120001,4642.3,4642.2,7.1094881]
[1759760109225,0.00120001,4642.3,4642.2,8.13155104]
[1759760109421,0.00120001,4642.3,4642.2,10.26111104]
[1759760109618,0.00120001,4642.3,4642.2,10.16582804]
[1759760109821,0.00120001,4642.3,4642.2,10.20884404]
[1759760110022,0.00120001,4642.3,4642.2,10.55427704]
[1759760110249,0.00120001,4642.3,4642.2,11.90042519]
[1759760110451,0.4701,4644.0,4643.9,2.15336247]
[1759760110654,2.91943376,4646.8,4643.9,2.475]
[1759760110655,0.4701,4644.5,4643.9,2.475]
[1759760110852,0.4701,4644.5,4644.1,2.15325846]
[1759760111073,0.4701,4644.5,4644.4,2.15313065]
[1759760111354,0.4701,4644.5,4644.4,2.475]
[1759760112780,0.4701,4644.9,4644.4,2.475]
[1759760112953,0.4701,4644.9,4644.4,4.62812355]
[1759760113150,0.4701,4644.8,4644.4,4.62812355]
[1759760113460,2.15268155,4645.4,4644.4,2.475]
[1759760113769,0.4701,4644.8,4644.4,4.62811991]
[1759760114081,0.4701,4644.7,4644.4,2.475]
[1759760114495,0.4701,4644.6,4643.3,0.57852361]
[1759760114788,0.4701,4644.6,4643.7,0.6336]
[1759760114974,0.4701,4645.1,4643.9,3.0336]
[1759760115178,0.4701,4645.1,4644.7,2.15296314]
[1759760115354,0.4701,4645.0,4644.8,2.475]
[1759760115784,0.4701,4645.0,4644.8,4.62792391]
[1759760116100,0.4701,4645.0,4644.5,2.15306087]
[1759760116101,0.4701,4644.9,4643.9,0.6336]
[1759760116285,2.15294522,4644.8,4643.3,0.11072361]
[1759760116467,0.4701,4644.7,4643.1,2.15372652]
[1759760116670,0.4701,4644.6,4644.1,2.15325584]
[1759760116877,0.4701,4644.9,4644.2,2.475]
[1759760117196,2.4,4646.2,4644.2,2.475]
[1759760117197,0.4701,4645.4,4644.8,2.15291927]
[1759760117354,0.4701,4645.4,4644.9,2.475]
[1759760117550,2.15266715,4645.4,4645.3,0.108]
[1759760117895,2.15266715,4645.4,4645.3,2.583]
[1759760118097,0.4701,4645.4,4645.3,2.583]
[1759760118452,0.4701,4645.4,4645.3,0.108]
[1759760119489,0.108,4646.2,4645.3,0.108]
[1759760119789,0.108,4646.5,4645.3,0.108]
[1759760119994,0.4701,4646.6,4645.4,0.6336]
[1759760120199,0.4701,4646.6,4646.0,2.15237955]
[1759760120381,0.4701,4646.6,4646.1,2.475]
[1759760120583,0.4701,4646.6,4645.2,0.6336]
[1759760120584,0.4701,4646.6,4646.2,2.475]
[1759760120887,0.4701,4646.5,4646.2,2.475]
[1759760121471,0.4701,4646.4,4646.2,2.475]
[1759760121886,0.4701,4646.8,4646.2,2.475]
[1759760122270,0.4701,4647.6,4646.2,2.475]
[1759760122470,0.4701,4647.6,4646.3,2.15225017]
[1759760122677,0.4701,4647.6,4646.6,2.15210718]
[1759760122876,0.4701,4647.6,4646.7,2.474]
[1759760122877,2.15170197,4647.5,4646.7,2.474]
[1759760123072,0.4701,4647.6,4646.8,2.474]
[1759760123694,0.4701,4647.8,4646.6,2.15209235]
[1759760123911,0.4701,4647.6,4646.7,2.474]
[1759760124079,2.15180889,4647.3,4646.7,2.474]
[1759760124263,2.15174723,4647.4,4646.7,2.474]
[1759760124594,0.4701,4647.6,4646.9,2.15196691]
[1759760124759,0.4701,4648.1,4647.4,2.15172738]
[1759760124960,0.26214887,4648.1,4647.5,2.474]
[1759760125159,0.4701,4648.0,4647.6,2.474]
[1759760125364,0.4115346,4647.9,4647.6,2.474]
[1759760125564,0.0012,4648.9,4646.8,0.6336]
[1759760125795,0.0012,4648.9,4645.8,2.15247898]
[1759760125796,13.58301827,4648.2,4644.9,0.4678]
[1759760125978,13.58301827,4648.2,4646.0,2.15238351]
[1759760125979,2.15201272,4646.9,4646.0,2.15238351]
[1759760126165,2.15201272,4646.9,4645.8,2.4]
[1759760126166,2.15201272,4646.9,4646.1,3.21131345]
[1759760126365,2.15161902,4647.7,4646.1,1.059]
[1759760126593,2.15201709,4646.9,4646.1,1.059]
[1759760126770,0.21520171,4646.8,4646.1,1.059]
[1759760126973,0.43264965,4648.2,4646.1,3.459]
[1759760127292,2.15127785,4648.4,4646.3,0.6336]
[1759760127516,2.15156364,4647.8,4647.0,2.15191781]
[1759760127717,2.1515156,4647.9,4647.1,4.62587772]
[1759760127883,2.15159599,4647.8,4647.2,2.474]
[1759760128084,2.15159599,4647.8,4646.6,0.4678]
[1759760128085,0.2621696,4647.8,4647.3,2.474]
[1759760128392,0.4701,4647.7,4647.4,2.474]
[1759760128612,2.15160711,4647.7,4647.5,2.474]
[1759760128819,0.4701,4647.7,4647.5,2.474]
[1759760129028,2.62170331,4647.7,4647.6,2.473]
[1759760129328,0.4701,4647.7,4647.6,2.473]
[1759760129505,2.15157635,4647.8,4647.6,2.473]
[1759760129689,2.15155675,4647.8,4647.6,2.473]
[1759760129887,2.15155675,4647.8,4647.7,0.1072]
[1759760130382,2.62165557,4647.8,4647.7,0.1072]
[1759760130788,0.4701,4647.8,4647.7,0.1072]
[1759760130989,4.55114324,4648.7,4647.7,0.1072]
[1759760131285,1.03253432,4648.6,4647.7,0.1072]
[1759760131485,1.03253432,4648.6,4647.8,2.473]
[1759760131895,2.15131095,4648.4,4648.2,0.1072]
[1759760132094,2.15132414,4648.3,4648.2,0.1072]
[1759760132301,0.30766585,4648.3,4648.2,0.1072]
[1759760132495,2.45898999,4648.3,4648.2,0.1072]
[1759760132700,2.15132414,4648.3,4648.2,0.1072]
[1759760133327,0.4693,4648.7,4647.8,4.62455205]
[1759760133531,0.0012,4648.9,4648.6,0.1072]
[1759760133728,0.0012,4648.9,4648.7,2.473]
[1759760133888,0.0012,4648.9,4648.8,2.15109275]
[1759760134093,0.0012,4648.9,4648.6,0.1072]
[1759760134327,0.0012,4648.9,4648.8,2.15109275]
[1759760134926,0.0012,4648.9,4648.8,0.6336]
[1759760135230,0.0012,4648.9,4648.8,5.74259275]
[1759760136103,0.0012,4648.9,4648.8,3.5915]
[1759760136301,0.0012,4648.9,4648.8,3.1408]
[1759760136499,0.0012,4648.9,4648.8,7.76489275]
[1759760136711,0.0012,4648.9,4648.8,2.5072]
[1759760136912,2.60674648,4648.9,4648.8,0.1072]
[1759760137114,0.0012,4648.9,4648.8,2.5802]
[1759760137714,2.60674648,4648.9,4648.8,2.5802]
[1759760137915,0.0012,4648.9,4648.8,2.5802]
[1759760138116,2.15224648,4648.9,4648.8,2.5802]
[1759760138509,0.0012,4648.9,4648.8,2.5802]
[1759760139827,0.0012,4648.9,4648.8,0.1072]
[1759760140125,2.60674648,4648.9,4648.8,0.1072]
[1759760140492,2.15224648,4648.9,4648.8,2.5792]
[1759760140699,2.15224648,4648.9,4648.8,0.1072]
[1759760141125,2.15224648,4648.9,4648.8,2.5792]
[1759760141508,0.0012,4648.9,4648.8,2.5792]
[1759760141802,2.15224648,4648.9,4648.8,2.5792]
[1759760142318,2.58256724,4648.9,4648.8,0.1072]
[1759760142525,2.58256724,4648.9,4648.8,2.5792]
[1759760142847,0.88602076,4648.9,4647.5,2.15169016]
[1759760143131,0.0012,4648.9,4648.5,0.1072]
[1759760143332,2.15225141,4648.9,4648.1,2.1514101]
[1759760143500,0.0012,4648.9,4648.0,0.6336]
[1759760143701,2.1511853,4648.6,4648.1,2.472]
[1759760144120,2.1511853,4648.6,4647.9,2.4]
[1759760144525,0.0012,4648.9,4648.0,2.472]
[1759760144724,0.4557,4648.9,4648.1,2.472]
[1759760144927,2.60676248,4648.9,4648.1,2.472]
[1759760145105,2.15109275,4648.8,4648.2,2.472]
[1759760145317,2.15136319,4648.3,4647.4,0.4448]
[1759760145515,0.4557,4648.9,4647.6,4.55164816]
[1759760145516,2.15129281,4648.4,4647.6,4.55164816]
[1759760146017,0.4557,4648.9,4647.6,4.55164816]
[1759760146018,0.4557,4648.9,4647.6,2.4]
[1759760146407,2.15143407,4648.1,4647.4,0.4448]
[1759760146645,2.15126962,4648.5,4647.5,4.872]
[1759760146829,0.0012,4648.9,4647.6,0.6336]
[1759760147029,2.15109275,4648.8,4648.0,2.15142584]
[1759760147240,2.15109275,4648.8,4648.1,2.472]
[1759760147415,0.0012,4648.9,4648.2,0.4448]
[1759760147736,2.1522913,4648.9,4648.1,2.472]
[1759760147904,0.0012,4648.9,4648.2,0.6336]
[1759760148108,2.15112748,4648.8,4648.1,0.6336]
[1759760148407,2.1522477,4648.9,4648.2,2.472]
[1759760148906,2.15120739,4648.6,4647.5,0.53168]
[1759760149111,0.4545,4648.8,4647.6,2.471]
[1759760149112,2.15141559,4648.2,4647.6,2.471]
[1759760149338,2.15143349,4648.1,4647.4,0.6336]
[1759760149543,0.4545,4648.5,4646.8,0.4448]
[1759760149757,2.15149495,4648.0,4647.1,2.15187966]
[1759760149965,0.4545,4648.5,4647.1,0.6336]
[1759760150120,2.15153232,4647.9,4647.1,0.6336]
[1759760150320,2.1514717,4648.0,4647.2,3.1046]
[1759760150618,2.1514717,4648.0,4647.2,5.5046]
[1759760150948,2.15151145,4647.9,4647.3,2.4]
[1759760151256,2.15147527,4648.0,4647.3,2.4]
[1759760151432,0.4545,4648.5,4647.3,2.4]
[1759760151763,0.0012,4648.9,4647.6,0.6336]
[1759760151941,0.0012,4648.9,4648.8,2.78469275]
[1759760152131,0.0012,4648.9,4648.8,7.65569275]
[1759760152341,0.0012,4648.9,4648.8,8.10049275]
[1759760153338,0.0012,4648.9,4648.8,8.20769275]
[1759760154426,0.0012,4648.9,4648.8,5.73669275]
[1759760154619,0.0012,4648.9,4648.8,5.29189275]
[1759760154952,0.0012,4648.9,4648.8,8.99647816]
[1759760155927,0.0012,4648.9,4648.8,4.37438541]
[1759760156175,0.0012,4648.9,4648.8,2.5072]
[1759760156319,0.0012,4648.9,4648.8,7.12929275]
[1759760157125,0.0012,4648.9,4648.8,8.20769275]
[1759760157321,0.0012,4648.9,4648.8,3.1408]
[1759760157759,0.0012,4648.9,4648.8,5.29189275]
[1759760157943,0.0004,4648.9,4648.8,5.29189275]
[1759760158467,0.0004,4648.9,4648.8,7.76289275]
[1759760159023,0.0004,4648.9,4648.8,8.20769275]
[1759760159554,0.0004,4648.9,4648.8,9.2436795]
[1759760160475,0.002,4649.9,4649.3,2.78446141]
[1759760160625,0.002,4649.9,4649.3,12.67501622]
[1759760160832,0.002,4649.9,4649.3,13.22701622]
[1759760161047,0.002,4649.9,4649.3,11.13216222]
[1759760161367,0.002,4649.9,4649.3,17.39646779]
[1759760161523,0.002,4649.9,4649.5,0.6336]
[1759760161734,0.002,4649.9,4649.8,5.29143013]
[1759760161961,0.002,4649.9,4649.8,22.83306894]
[1759760162169,0.002,4649.9,4649.8,20.92576894]
[1759760162349,0.002,4649.9,4649.8,10.37472194]
[1759760162557,0.002,4649.9,4649.8,5.73623013]
[1759760162848,0.002,4649.9,4649.8,8.20623013]
[1759760163835,0.002,4649.9,4649.8,11.55535913]
[1759760164043,0.002,4649.9,4649.8,11.84186894]
[1759760164363,0.002,4649.9,4649.8,8.10151194]
[1759760164562,0.002,4649.9,4649.8,6.83653387]
[1759760164731,0.002,4649.9,4649.8,8.86173387]
[1759760164967,0.002,4649.9,4649.8,6.39173387]
[1759760165166,0.002,4649.9,4649.8,8.86173387]
[1759760165586,0.002,4649.9,4649.8,7.76143013]
[1759760166387,0.002,4649.9,4649.8,8.21863013]
[1759760166669,0.002,4649.9,4649.8,7.76143013]
[1759760169498,0.002,4649.9,4649.8,8.21863013]
[1759760170801,0.002,4649.9,4649.8,7.76143013]
[1759760171013,0.002,4649.9,4649.8,8.75264541]
[1759760171806,0.002,4649.9,4649.8,5.29143013]
[1759760172105,0.002,4649.9,4649.8,7.76143013]
[1759760172693,0.002,4649.9,4649.8,2.5072]
[1759760172895,0.002,4649.9,4649.8,2.5762]
[1759760172896,0.4427,4649.9,4649.8,2.5762]
[1759760173199,0.4427,4649.9,4649.8,0.1072]
[1759760173403,0.4427,4649.9,4649.8,2.5762]
[1759760174211,0.002,4649.9,4649.8,4.72683013]
[1759760174420,0.002,4649.9,4649.8,7.65323013]
[1759760174586,0.002,4649.9,4649.8,6.34761239]
[1759760174777,0.002,4649.9,4649.8,7.76043013]
[1759760175179,0.002,4649.9,4649.8,5.29143013]
[1759760175382,0.4427,4649.9,4649.8,2.5072]
[1759760175685,0.4427,4649.9,4649.8,4.9762]
[1759760175878,0.002,4649.9,4649.8,7.12683013]
[1759760176728,2.59328388,4649.9,4649.8,0.1072]
[1759760176878,0.91707765,4649.9,4649.8,2.5762]
[1759760177082,0.91707765,4649.9,4649.8,0.1072]
[1759760177316,2.59328388,4649.9,4649.8,0.1072]
[1759760177518,2.59328388,4649.9,4649.8,1.3942]
[1759760178376,2.15063603,4649.8,4649.3,0.001]
[1759760178580,2.15063603,4649.8,4649.6,0.1072]
[1759760178783,2.59137638,4649.7,4649.6,0.1072]
[1759760178981,2.85071402,4649.7,4649.6,0.1072]
[1759760179693,0.70003764,4649.7,4649.6,0.1072]
[1759760179883,0.4407,4649.7,4649.6,0.1072]
[1759760180095,2.59137638,4649.7,4649.6,0.1072]
[1759760181014,2.59137638,4649.7,4649.6,1.6782]
[1759760181225,2.59137638,4649.7,4649.6,0.1072]
[1759760181421,2.59137638,4649.7,4649.6,2.5762]
[1759760181722,2.59137638,4649.7,4649.6,0.1072]
[1759760181897,3.06577326,4649.7,4649.6,0.1072]
[1759760182102,2.15072264,4649.6,4649.5,2.469]
[1759760182422,2.15072264,4649.6,4649.3,0.1082]
[1759760182423,0.47439688,4649.7,4649.3,0.001]
[1759760182607,0.1072,4649.6,4649.3,0.001]
[1759760182794,0.002,4649.9,4649.3,0.001]
[1759760182995,0.002,4649.9,4649.8,0.1072]
[1759760183195,0.002,4649.9,4649.8,4.72683013]
[1759760183406,0.002,4649.9,4649.8,5.36043013]
[1759760183624,0.002,4649.9,4649.8,8.96874517]
[1759760184007,0.002,4649.9,4649.8,8.21763013]
[1759760184206,0.002,4649.9,4649.8,5.9598]
[1759760184525,0.002,4649.9,4649.8,8.11043013]
[1759760186336,0.002,4649.9,4649.8,8.41110661]
[1759760186906,0.002,4649.9,4649.8,9.16190942]
[1759760187135,0.002,4649.9,4649.8,10.29317202]
[1759760187312,0.002,4649.9,4649.8,14.21052121]
[1759760188031,0.002,4649.9,4649.8,15.34184714]
[1759760188532,0.002,4649.9,4649.8,13.09496114]
[1759760188734,0.002,4649.9,4649.8,13.05196114]
[1759760188946,0.002,4649.9,4649.8,15.69276614]
[1759760189108,0.002,4649.9,4649.8,13.26676614]
[1759760189311,0.002,4649.9,4649.8,16.71257514]
[1759760189833,0.002,4649.9,4649.8,15.46970342]
[1759760190005,0.002,4649.9,4649.8,20.87726542]
[1759760190209,0.002,4649.9,4649.8,22.116465]
[1759760190414,0.002,4649.9,4649.8,17.647685]
[1759760190606,0.002,4649.9,4649.8,17.966541]
[1759760190812,0.002,4649.9,4649.8,18.36490342]
[1759760191126,0.002,4649.9,4649.8,24.4719977]
[1759760191327,0.002,4649.9,4649.8,22.2962177]
[1759760191841,0.002,4649.9,4649.8,19.8272177]
[1759760192046,0.002,4649.9,4649.8,11.70989501]
[1759760192229,0.002,4649.9,4649.8,13.40971773]
[1759760192910,0.002,4649.9,4649.8,14.04331773]
[1759760193235,0.002,4649.9,4649.8,6.77269273]
[1759760193408,0.002,4649.9,4649.8,13.49367573]
[1759760193742,0.002,4649.9,4649.8,6.31549273]
[1759760193911,0.002,4649.9,4649.8,4.55063013]
[1759760194240,0.002,4649.9,4649.8,8.18933013]
[1759760195056,0.002,4649.9,4649.8,8.94059742]
[1759760195360,0.002,4649.9,4649.8,8.51169742]
[1759760195530,0.002,4649.9,4649.8,7.76043013]
[1759760195855,0.002,4649.9,4649.8,8.8267697]
[1759760196065,0.002,4649.9,4649.8,9.2612697]
[1759760196229,0.002,4649.9,4649.8,9.57803699]
[1759760196426,0.002,4649.9,4649.8,8.8267697]
[1759760196931,0.002,4649.9,4649.8,6.3577697]
[1759760197161,0.002,4649.9,4649.8,9.56094618]
[1759760197330,0.002,4649.9,4649.8,12.67390118]
[1759760198044,0.002,4650.9,4650.4,2.78395265]
[1759760198359,0.002,4650.9,4650.8,5.18376771]
[1759760198666,0.002,4650.9,4650.8,8.05964419]
[1759760198825,0.002,4650.9,4650.8,5.59164419]
[1759760199027,0.002,4650.9,4650.8,8.05964419]
[1759760199232,0.002,4650.9,4650.8,8.60394353]
[1759760199447,0.002,4650.9,4650.8,9.7071988]
[1759760200364,0.002,4650.9,4650.8,23.8412898]
[1759760200538,0.002,4650.9,4650.8,20.8430598]
[1759760200732,0.002,4650.9,4650.8,15.82924646]
[1759760201064,0.002,4650.9,4650.8,14.08464446]
[1759760201432,0.002,4650.9,4650.8,18.61584746]
[1759760201630,0.002,4650.9,4650.8,17.10698246]
[1759760201934,0.002,4650.9,4650.8,11.6619031]
[1759760202134,0.002,4650.9,4650.8,9.19364487]
[1759760202337,0.002,4650.9,4650.8,11.96232135]
[1759760202543,0.002,4650.9,4650.8,15.60582135]
[1759760202743,0.002,4650.9,4650.8,14.89653535]
[1759760202972,0.002,4650.9,4650.8,15.60582135]
[1759760203269,0.002,4650.9,4650.8,15.60578635]
[1759760203963,0.002,4650.9,4650.8,13.13765386]
[1759760204280,0.002,4650.9,4650.8,14.60565386]
[1759760204456,0.002,4650.9,4650.8,15.60525386]
[1759760205365,0.002,4650.9,4650.8,9.80473786]
[1759760205569,0.002,4650.9,4650.8,18.10503619]
[1759760206184,0.4519,4653.0,4652.9,2.78279727]
[1759760206478,0.4519,4653.0,4652.9,5.25079727]
[1759760206781,0.4511,4653.5,4653.4,2.14896634]
[1759760206960,0.4511,4653.5,4653.4,4.61696634]
[1759760207784,0.4511,4653.5,4653.4,2.468]